Cogmind - Beta 17 @@@ ROGUE MODE // 2026.08.09 @ 16:46:16 Player: aperiodic Result: Destroyed by P-80 Master with Gamma Rifle Performance ------------- Evolutions (7) 3500 Regions Visited (22) 4400 Robots Destroyed (286) 1430 Value Destroyed (13726) 13726 Prototype IDs (64) 1280 Alien Tech Used (0) 0 Bonus (14234) 14234 TOTAL SCORE: 38570 Bonus ------- High Alert Combat Kills 805 Follower Combat Kills 3148 Hunted by Unchained 500 Destroyed Unchained 1000 Network Hubs Disabled 200 Delivered SUBCON Basin 2000 Registered with UFD 300 Met Optimus in HQ 500 Met Warlord at Base 500 MAIN.C Attacked Warlord 500 Warlord Defense Kills 3718 Built Enhanced Grunts 300 Met R17 at Cetus 500 Met R17 at Research 2000 Friendly Fire -1737 Cogmind --------- Core Integrity 0/1300 Matter 19/300 Energy 30/100 System Corruption 44% Temperature Cool (4) Movement Core (300) Ox5 Location -3/Armory Parts ------- > --- POWER (2) -------- (None) > --- PROPULSION (6) --- (None) > --- UTILITY (10) ----- (None) > --- WEAPON (3) ------- Vortex Driver > --- INVENTORY (5) ---- Long-range Sensor Array Rainbow Chip Tesla Bomb Launcher Improved Plasma Cutter Peak State ------------ > --- POWER ------------ Graviton Reactor Vortex Chain Reactor > --- PROPULSION ------- Biometal Heavy Treads Advanced Heavy Siege Treads Advanced Heavy Siege Treads > --- UTILITY ---------- High-capacity Storage Unit Spectral Analyzer Experimental Targeting Computer Experimental Target Analyzer Medium Regenerative Plating Advanced Force Field Improved Hacking Suite Improved Hacking Suite Advanced Hacking Suite Advanced Hacking Suite > --- WEAPON ----------- Powered Cannon Hypervelocity Railgun > --- INVENTORY -------- Combat Linear Gravjet Combat Linear Gravjet Advanced Cooling System Experimental Coolant Injector Experimental Energy Well Deep Structural Scanner Long-range Sensor Array Particle Accelerator Experimental Weapon Shielding Graphene Brace Rainbow Chip Enhanced Quantum Rifle Vortex Driver Vortex Driver Gamma Bomb Array Improved Plasma Cutter CPS Tube Botcube [Rating: 181] Favorites ----------- Power Vortex Chain Reactor Engine Ion Engine Power Core Hybrid Fission Core Reactor Vortex Chain Reactor Propulsion Flexi-carbon Leg Treads Spiked Treads Leg Flexi-carbon Leg Wheel Wheel Hover Unit Combat Linear Gravjet Flight Unit Nuclear Pulse Thruster Utility High-capacity Storage Unit Device Improved Force Field Storage High-capacity Storage Unit Processor Spectral Analyzer Hackware Advanced Hacking Suite Protection Medium Regenerative Plating Weapon Heavy Dispersion Rifle Energy Gun Heavy Dispersion Rifle Energy Cannon Subdweller Beam Cannon Ballistic Gun Helical Railgun Ballistic Cannon Enhanced Hardcell Cannon Launcher Heavy Missile Launcher Special Weapon Mining Laser Impact Weapon Shock Maul Slashing Weapon Power Sword Piercing Weapon Kinetic Spear Special Melee Weapon Datajack Build | -11 -10 -10 -10 -9 -9 -6 -6 -6 -6 -5 -5 -5 -5 -5 -4 -4 -4 -4 -4 -4 -3 -3 ------- Run | Yrd Mat Min Sub Rec Scr Fac Low Low Zio Pro Fac Upp Upp War Pro Fac Ext Cet Arc Hub Res Arm Slots Evolved 14 | . . . . . . 8 . . . . 2 . . . . 2 . . . . 2 . Power 1 | . . . . . . . . . . . . . . . . 1 . . . . . . Propulsion 4 | . . . . . . 2 . . . . 1 . . . . 1 . . . . . . Utility 8 | . . . . . . 5 . . . . 1 . . . . . . . . . 2 . Weapon 1 | . . . . . . 1 . . . . . . . . . . . . . . . . Parts Attached 221 | 8 8 4 17 . 12 41 4 1 1 1 7 2 . 14 . 10 7 12 1 4 17 50 Power 14 | 1 . 1 . . 1 4 . . . . . . . . . 1 . 1 . . 1 4 Engine 5 | 1 . 1 . . 1 2 . . . . . . . . . . . . . . . . Core 2 | . . . . . . 2 . . . . . . . . . . . . . . . . Reactor 7 | . . . . . . . . . . . . . . . . 1 . 1 . . 1 4 Propulsion 75 | 3 3 1 4 . 2 14 2 . . . 3 . . 5 . 2 5 1 . 4 4 22 Treads 13 | . 2 . 1 . 1 2 . . . . . . . . . . . 1 . . 3 3 Leg 31 | . . . . . . 9 2 . . . 3 . . 5 . 2 5 . . 4 1 . Wheel 7 | 3 1 1 2 . . . . . . . . . . . . . . . . . . . Hover 22 | . . . . . 1 2 . . . . . . . . . . . . . . . 19 Flight 2 | . . . 1 . . 1 . . . . . . . . . . . . . . . . Utility 74 | 2 1 1 3 . 5 14 2 . 1 1 4 2 . 4 . 4 1 7 1 . 9 12 Device 37 | 1 . 1 1 . 3 6 1 . . 1 . 2 . 3 . 3 1 3 1 . 3 7 Storage 8 | 1 1 . . . 1 2 . . . . . . . . . . . 1 . . 1 1 Processor 9 | . . . . . 1 3 . . . . . . . 1 . . . 1 . . 1 2 Hackware 11 | . . . . . . 1 . . . . 4 . . . . 1 . . . . 3 2 Protection 9 | . . . 2 . . 2 1 . 1 . . . . . . . . 2 . . 1 . Artifact . | . . . . . . . . . . . . . . . . . . . . . . . Weapon 58 | 2 4 1 10 . 4 9 . 1 . . . . . 5 . 3 1 3 . . 3 12 Energy Gun 13 | 1 . . 3 . . 3 . . . . . . . . . 3 . 1 . . 2 . Energy Cannon 14 | . 2 . 5 . . 1 . . . . . . . 2 . . . . . . 1 3 Ballistic Gun 13 | 1 1 1 2 . 1 . . . . . . . . 1 . . . 2 . . . 4 Ballistic Cannon 4 | . . . . . . 1 . . . . . . . . . . . . . . . 3 Launcher 5 | . . . . . . 1 . 1 . . . . . 1 . . . . . . . 2 Special Weapon 5 | . 1 . . . 1 1 . . . . . . . 1 . . 1 . . . . . Impact Weapon 1 | . . . . . . 1 . . . . . . . . . . . . . . . . Slashing Weapon 1 | . . . . . 1 . . . . . . . . . . . . . . . . . Piercing Weapon 1 | . . . . . . 1 . . . . . . . . . . . . . . . . Special Melee Weapon 1 | . . . . . 1 . . . . . . . . . . . . . . . . . Unidentified Prototypes 42 | . . . . . 1 11 1 . . 1 . . . 6 . 2 . 8 . 1 2 9 Parts Lost 48 | . 1 3 2 . . 13 . . . . 3 . . . . . . . . 4 2 20 Power 5 | . . 1 . . . 1 . . . . . . . . . . . . . . . 3 Propulsion 7 | . . 1 1 . . 5 . . . . . . . . . . . . . . . . Utility 23 | . . 1 . . . 6 . . . . 2 . . . . . . . . 3 . 11 Weapon 13 | . 1 . 1 . . 1 . . . . 1 . . . . . . . . 1 2 6 Highest Loss Streak 6 | . 1 1 2 . . 6 . . . . 1 . . . . . . . . 2 1 6 To Critical Strikes . | . . . . . . . . . . . . . . . . . . . . . . . Average Backups 13 | 3 8 11 5 9 7 13 12 12 12 13 13 14 14 15 15 15 16 17 18 18 15 14 Power . | . 1 . . . . . . . . . . . . . 1 . . . . . . . Propulsion 1 | 1 4 5 1 1 . 1 1 1 1 1 . . . . . . . 2 2 2 1 2 Utility 7 | . . 1 . 3 3 4 5 6 6 7 8 9 9 7 7 7 8 10 10 10 8 6 Weapon 3 | 1 2 3 3 3 1 3 3 3 3 3 2 2 2 3 4 4 4 4 4 4 4 3 Tool/Special . | . . . . . . . . . . . . . . . . . . . . . . . Unused Backups 70 | . . . 5 . 14 12 1 . . . 1 . . 2 . . . 10 1 7 4 13 Power 5 | . . . 1 . 1 1 . . . . . . . . . . . 1 . 1 . . Propulsion 15 | . . . 1 . 4 1 . . . . 1 . . . . . . 1 . . 2 5 Utility 30 | . . . . . 6 6 1 . . . . . . 2 . . . 6 1 5 1 2 Weapon 16 | . . . 3 . 3 2 . . . . . . . . . . . 2 . 1 1 4 Tool/Special 4 | . . . . . . 2 . . . . . . . . . . . . . . . 2 Average Slot Usage (%) 88 | . 99 98 87 100 76 80 93 93 93 93 92 93 93 91 94 88 89 89 94 93 88 76 Engine 2 | . 14 13 14 14 5 . . . . . . . . . . . . . . . . . Core 1 | . . . . . . 5 6 6 6 6 5 5 5 5 5 1 . . . . . . Reactor 2 | . . . . . . . . . . . . . . . . 3 5 4 5 5 5 5 Treads 3 | . 10 2 . . 16 7 . . . . . . . . . . . . . . 2 3 Leg 18 | . . . . . . 14 26 26 26 26 28 29 29 29 29 29 30 31 31 31 22 . Wheel 4 | . 16 24 27 28 8 . . . . . . . . . . . . . . . . . Device 8 | . 14 14 2 14 2 8 12 13 13 13 4 10 11 10 11 7 6 5 10 15 3 9 Storage 6 | . 14 14 2 14 10 8 6 6 6 6 5 5 5 5 5 5 5 5 5 5 4 5 Processor 9 | . . . . . 11 11 13 13 13 13 11 11 11 10 11 10 10 10 10 10 13 10 Hackware 5 | . . . . . . 1 . . . . 10 5 5 5 5 9 10 10 9 5 18 8 Protection 4 | . . . 11 . . 1 5 6 6 6 5 5 5 5 5 3 3 5 5 3 4 2 Energy Gun 6 | . . . 7 14 2 8 19 18 20 20 13 11 11 8 11 10 10 9 5 5 3 . Energy Cannon 2 | . 12 10 16 14 2 2 . . . . . . . . . . . . . . 1 2 Ballistic Gun 5 | . 13 17 1 . 4 2 . . . . . . . 1 5 4 4 4 10 9 3 4 Special Melee Weapon 1 | . . . . . 9 . . . . . . . . . . . . . . . . . Peak Build Rating 181 | 7 7 8 31 31 26 98 96 91 94 98 112 109 109 127 127 150 150 148 146 152 165 181 Average Rating 96 | 5 6 7 11 23 15 72 91 89 91 92 105 107 107 114 125 142 144 143 145 144 158 148 On Entrance 86 | . 7 7 8 31 16 26 90 91 86 94 92 103 109 107 127 127 150 144 146 145 130 164 Avg Prop Armor Cover (%) 9 | . . 13 1 . 9 2 . . . . . . . . . . . . 19 . 2 6 Naked Turns 61 | . . . . . . 8 . . . . . . . . . . . . . . . 53 Heaviest Build 129 | 11 88 90 98 98 98 80 86 86 93 86 86 85 85 99 89 109 109 116 117 118 118 129 Greatest Support 235 | 26 40 40 20 20 40 69 69 65 65 65 90 90 90 112 112 137 141 131 131 155 225 235 Greatest Overweight (x) 38 | . 8 8 4 4 4 2 1 1 1 1 1 . . . . . . . 38 . . 1 Average Overweight (x) 2 | . . 3 1 4 1 . . 1 1 1 . . . . . . . . 26 . . . Largest Inventory Capacity 25 | 8 25 25 25 25 25 20 20 20 20 20 20 20 20 20 20 20 20 20 20 20 20 20 Average Capacity 18 | 7 14 25 9 25 18 19 20 20 20 20 20 20 20 20 20 20 20 20 20 20 20 19 Most Carried 25 | 7 9 16 25 25 20 20 20 20 20 20 20 20 20 20 20 20 20 20 20 20 20 20 Average Carried 16 | 4 8 11 7 19 8 17 19 19 19 19 19 19 19 19 20 19 19 19 19 19 17 15 Final Capacity 25 | 8 25 25 25 25 20 20 20 20 20 20 20 20 20 20 20 20 20 20 20 20 20 5 Final Carried 25 | 7 8 16 25 17 20 20 20 20 20 20 20 19 19 20 20 20 20 20 20 20 16 4 Scrap Suit Usage (%) 1 | . . . . . . 1 . . . . . . . . . . . . . . . . Parts Cannibalized 1 | . . . . . . 1 . . . . . . . . . . . . . . . . Class Distribution -------------------- 31% | Commander-Tank 16% | Mutant 8% | Scavenger-Mutant 8% | Skirmisher 6% | Scavenger-Gunner 4% | Scientist-Mutant 3% | Derelict-Mutant 3% | Subdweller-Mutant Dominant Class ---------------- Mutant | -10/Materials Mutant | -10/Mines Subdweller-Mutant | -10/Subcaves Scavenger-Mutant | -9/Recycling Mutant | -9/Scraptown Scavenger-Gunner | -6/Factory Skirmisher | -6/Lower Caves Skirmisher | -6/Lower Caves Skirmisher | -6/Zion Skirmisher | -5/Proximity Caves Hacker-Skirmisher | -5/Factory Scientist-Mutant | -5/Upper Caves Scientist-Mutant | -5/Upper Caves Scientist-Mutant | -5/Warlord Scavenger-Gunner | -4/Proximity Caves Hacker-Gunner | -4/Factory Scavenger-Gunner | -4/Extension Scavenger-Gunner | -4/Cetus Commander-Tank | -4/Archives Scavenger-Tank | -4/Hub_04(d) Hacker-Mutant | -3/Research Hacker-Mutant | -3/Armory Resources | -11 -10 -10 -10 -9 -9 -6 -6 -6 -6 -5 -5 -5 -5 -5 -4 -4 -4 -4 -4 -4 -3 -3 ----------- Run | Yrd Mat Min Sub Rec Scr Fac Low Low Zio Pro Fac Upp Upp War Pro Fac Ext Cet Arc Hub Res Arm Matter Collected 7346 | 296 260 183 378 . 150 886 104 15 73 40 443 84 112 223 50 363 1152 339 33 589 352 1221 Remotely . | . . . . . . . . . . . . . . . . . . . . . . . Salvage Created 12563 | 194 378 305 666 196 . 1644 157 51 . 84 992 106 371 950 123 1187 575 383 318 1229 218 2436 Parts 616 | 15 15 27 53 10 . 57 9 4 . 5 47 4 15 34 4 50 20 31 26 48 14 128 Haulers Intercepted 5 | . 1 . . . . 2 . . . . . . . . . 1 . . . 1 . . Recyclers Shooed 8 | . . . . . . 3 . . . . 1 . . . . 3 1 . . . . . Parts Field Recycled . | . . . . . . . . . . . . . . . . . . . . . . . Retrieved Matter . | . . . . . . . . . . . . . . . . . . . . . . . Parts Self-Destructed 50 | . . . 14 . . . 8 3 . 7 . 4 9 . 5 . . . . . . . Prevented 3 | . . . . . . . . . . 3 . . . . . . . . . . . . Parts Restored . | . . . . . . . . . . . . . . . . . . . . . . . Kills | -11 -10 -10 -10 -9 -9 -6 -6 -6 -6 -5 -5 -5 -5 -5 -4 -4 -4 -4 -4 -4 -3 -3 ------- Run | Yrd Mat Min Sub Rec Scr Fac Low Low Zio Pro Fac Upp Upp War Pro Fac Ext Cet Arc Hub Res Arm Combat Hostiles Destroyed 224 | . 7 12 15 2 . 29 2 3 . 2 27 2 7 30 2 13 5 6 . 16 5 39 Melee 12 | . . . . . . 12 . . . . . . . . . . . . . . . . Guns 76 | . . 6 2 1 . 5 2 . . 2 10 2 7 . 2 9 5 2 . 16 1 4 Cannons 60 | . 7 6 12 1 . 2 . . . . . . . 2 . . . . . . . 30 AOE 69 | . . . 1 . . 7 . 3 . . 17 . . 28 . 4 . 4 . . 4 1 Classes Destroyed 25 | 2 5 1 2 1 . 4 1 . . 1 . . 1 5 . . . . . . . 2 Worker 5 | . . . . . . 1 . . . . . . . . . 2 . . . 1 1 . Builder 9 | . 1 2 . . . 1 . . . . 2 . . . . 3 . . . . . . Tunneler 6 | 5 . 1 . . . . . . . . . . . . . . . . . . . . Hauler 5 | . 1 . . . . 2 . . . . . . . . . 1 . . . 1 . . Recycler 9 | 1 . . . . . 2 . . . . 1 . . . . 3 2 . . . . . Minesweeper 3 | . . . . . . . 2 1 . . . . . . . . . . . . . . Mechanic 4 | . . . . . . 1 . . . . . . . 2 . . . . . . . 1 Operator 12 | . 1 . . . . . . . . . . . . . . 1 1 . 9 . . . Drone 1 | . . . . . . . . . . 1 . . . . . . . . . . . . Watcher 7 | . 1 . . . . . . . . . 3 . . . . . . . . . 1 2 Swarmer 44 | . . 8 3 . . 6 . 3 . . 10 1 . 1 . 1 . 2 . . 4 5 Saboteur 3 | . . . . . . . . . . . . . . . . . . . . . . 3 Grunt 88 | . 7 4 . . . 14 2 . . . 9 . 4 13 . 4 4 2 . 6 . 19 Brawler 5 | . . . . . . . . . . . . . . 5 . . . . . . . . Duelist 6 | . . . . . . . . . . . . . 1 3 . 1 . . . . . 1 Protector 2 | . . . . . . . . . . . . . . 2 . . . . . . . . Sentry 15 | . . . . 2 . 2 . . . . 3 1 . . 1 1 . . . 2 1 2 Specialist 1 | . . . . . . . . . . . . . . 1 . . . . . . . . Hunter 19 | . . . . . . 1 . . . 1 2 . 2 2 . 4 1 . . 6 . . Programmer 24 | . . . . . . 6 . . . 1 3 . . 1 1 2 . . . 2 . 8 Heavy 1 | . . . . . . . . . . . . . . . . . . . . . . 1 Behemoth 1 | . . . . . . . . . . . . . . 1 . . . . . . . . Cetus Guard 2 | . . . . . . . . . . . . . . . . . . 2 . . . . Executioner 1 | . . . . . . . . . . . . . . 1 . . . . . . . . Artisan 1 | . . . 1 . . . . . . . . . . . . . . . . . . . Subdweller 12 | . . . 12 . . . . . . . . . . . . . . . . . . . Best Kill Streak 11 | 4 2 3 3 1 . 6 1 3 . 1 5 2 3 11 1 4 2 2 3 3 4 10 Combat Bots Only 11 | . 2 3 3 1 . 6 1 3 . 1 5 2 3 11 1 3 2 2 . 3 4 10 Max Kills in Single Turn 6 | 1 1 1 1 1 . 3 1 2 . 1 3 1 1 6 1 4 1 2 1 1 2 1 Gunslinging . | . . . . . . . . . . . . . . . . . . . . . . . Exploded 6 | . . . 1 . . 2 . 2 . . 3 . . 6 . 2 . 2 . . 2 1 Melee 1 | . . . . . . 1 . . . . . . . . . . . . . . . . Uniques/NPCs Destroyed 2 | . . . . . . . . . . . . . . . . . . 1 . . . 1 A7 (-4/Cetus) DW-4LL (-3/Armory) Combat | -11 -10 -10 -10 -9 -9 -6 -6 -6 -6 -5 -5 -5 -5 -5 -4 -4 -4 -4 -4 -4 -3 -3 -------- Run | Yrd Mat Min Sub Rec Scr Fac Low Low Zio Pro Fac Upp Upp War Pro Fac Ext Cet Arc Hub Res Arm Hostile Shots Fired 1553 | . 23 66 33 2 . 261 1 4 . 10 93 4 41 32 11 104 27 10 3 265 31 532 Missed 541 | . 2 21 10 1 . 77 . 2 . 3 34 2 14 21 3 32 8 7 1 114 11 178 Hits 1012 | . 21 45 23 1 . 184 1 2 . 7 59 2 27 11 8 72 19 3 2 151 20 354 Melee 6 | . . . . . . 1 . . . . . . . . . 2 . . . . . 3 Projectile 1006 | . 21 45 23 1 . 183 1 2 . 7 59 2 27 11 8 70 19 3 2 151 20 351 AOE 2 | . . . . . . . . . . . . . . . . . . . . . . 2 Critical Strikes 47 | . 1 2 . . . 4 . 1 . 1 2 . 2 . . 1 . . . 11 3 19 Actively Blocked 12 | . . . . . . . . . . . . . . . . 1 . . . . . 11 Part Disruptions 3 | . . . . . . . . . . . . . . . . . . . . 1 . 2 Damage Taken 16249 | . 288 418 478 18 . 2972 19 26 . 134 1317 40 379 161 143 1059 346 69 26 1521 447 6388 Core 2516 | . 56 92 22 . . 730 . . . 37 21 . 14 62 . 63 45 . . 68 21 1285 Absorbed by Shields 2995 | . . . . . . . . . . . . 4 116 50 35 281 51 38 27 1206 85 1102 Reduced by Siege Mode 331 | . . . . . . . . . . . . . . . . . . . . . . 331 Redirected to Shielding 159 | . . . . . . . . . . . . . . . . . . . . . 37 122 Ignored by Resistances 24 | . . . . . . 24 . . . . . . . . . . . . . . . . Regen/Repaired (Parts) 1296 | . . . . . . 7 . . . . . . . 91 . 80 . 23 . 228 435 432 Core Remaining (%) 63 | 100 . . . . 32 . . . . 9 . . . . 90 . . . . 84 . . Volleys Fired 929 | 16 39 46 82 22 1 57 19 20 1 19 51 10 24 28 10 50 50 23 56 61 20 224 Largest 3 | 2 2 2 2 2 1 3 3 3 1 3 3 2 2 1 3 3 3 3 3 3 2 3 Hottest 282 | 60 100 80 160 140 . 282 282 282 94 282 282 188 188 100 226 226 168 168 138 138 130 120 Shots Fired 1436 | 32 74 89 96 23 1 87 34 24 1 31 87 14 46 28 22 105 90 34 60 157 24 277 Gun 967 | 32 35 63 8 7 . 47 34 21 1 31 72 14 46 8 22 99 89 30 60 155 14 79 Cannon 369 | . 38 26 54 16 . 28 . . . . . . . 11 . . . . . . 2 194 Launcher 61 | . . . . . . 12 . 3 . . 15 . . 9 . 6 . 3 . 1 8 4 Special 39 | . 1 . 34 . 1 . . . . . . . . . . . 1 1 . 1 . . Kinetic 422 | 16 35 63 2 . . 25 . . . . . . . 2 6 26 33 10 5 97 4 98 Thermal 924 | 16 39 26 94 23 . 50 34 21 1 31 72 14 46 6 16 73 56 20 55 59 12 160 Explosive 48 | . . . . . . 12 . 3 . . 15 . . . . 6 . 3 . 1 8 . Electromagnetic 4 | . . . . . . . . . . . . . . . . . . . . . . 4 Entropic 35 | . . . . . . . . . . . . . . 20 . . . . . . . 15 Robot Hit Streak 29 | 11 23 29 19 21 4 9 4 5 . 4 13 15 18 10 9 26 11 8 23 16 8 27 Robot Miss Streak 6 | 1 4 3 1 2 . 3 3 2 . 4 1 . 3 1 1 2 4 2 2 4 3 6 Penetration Max 1 | . . . . . . . . . . . . . . 1 . 1 1 . . 1 . 1 Secondary Targets 8 | . . . . . . . . . . . 1 . . . . 1 1 1 . 4 . . Max Gunslinging Chain 1 | . . . . . . . . . . . 1 . . . . 1 1 1 . 1 . . Shots Hit Robots 860 | 21 52 53 34 9 3 71 11 4 . 16 50 2 29 18 14 72 43 26 54 103 9 166 Core Hits 505 | 10 17 24 18 3 . 65 5 6 . 5 59 2 11 48 4 45 18 16 22 40 21 66 Critical Kills 36 | . . . . . . 3 4 1 . 3 6 2 3 . . . 1 . . 4 1 8 Critical Parts Destroyed 51 | 1 . . . . . 4 2 1 . 4 4 . 7 . 2 1 1 . 1 11 . 12 Critical Strikes 109 | 1 . . . . . 8 6 2 . 7 15 2 10 8 3 1 2 . 1 15 1 27 Meltdown 5 | . . . . . . . . . . . . . . . . . . . . . . 5 Destroy 83 | 1 . . . . . 2 6 2 . 7 14 2 10 . 3 1 2 . 1 15 1 16 Blast 4 | . . . . . . 1 . . . . . . . . . . . . . . . 3 Smash 5 | . . . . . . 5 . . . . . . . . . . . . . . . . Impale 1 | . . . . . . . . . . . 1 . . . . . . . . . . . Sunder 11 | . . . . . . . . . . . . . . 8 . . . . . . . 3 Melee Attacks 60 | . . . . . 2 47 . . . . 11 . . . . . . . . . . . Impact 27 | . . . . . . 27 . . . . . . . . . . . . . . . . Slashing . | . . . . . . . . . . . . . . . . . . . . . . . Piercing 31 | . . . . . . 20 . . . . 11 . . . . . . . . . . . Sneak Attacks 7 | . . . . . 2 4 . . . . 1 . . . . . . . . . . . Combat Hostiles . | . . . . . . . . . . . . . . . . . . . . . . . Follow-up Attacks . | . . . . . . . . . . . . . . . . . . . . . . . Damage Inflicted 43428 | 200 732 594 801 246 . 5251 330 397 . 566 3950 60 870 10029 454 3297 1510 1026 1612 2888 805 7810 Guns 14211 | 200 157 296 111 83 . 417 330 120 . 566 1157 60 870 56 454 1965 1378 687 1612 2876 236 580 Cannons 10389 | . 575 298 690 163 . 445 . . . . . . . 1201 . . . . . . . 7017 Explosions 16545 | . . . . . . 2504 . 277 . . 2549 . . 8772 . 1332 . 339 . . 569 203 Melee 2091 | . . . . . . 1883 . . . . 208 . . . . . . . . . . . Ramming 192 | . . . . . . 2 . . . . 36 . . . . . 132 . . 12 . 10 Kinetic 5135 | 82 157 296 15 . . 385 . . . . . . . 56 163 449 622 229 128 1725 89 739 Thermal 17678 | 118 575 298 786 246 . 477 330 120 . 566 1157 60 870 . 291 1963 756 458 1484 1151 147 5825 Explosive 7123 | . . . . . . 2504 . 277 . . 2549 . . . . 885 . 339 . . 569 . Electromagnetic 140 | . . . . . . . . . . . . . . . . . . . . . . 140 Impact 1089 | . . . . . . 1089 . . . . . . . . . . . . . . . . Slashing . | . . . . . . . . . . . . . . . . . . . . . . . Piercing 1002 | . . . . . . 794 . . . . 208 . . . . . . . . . . . Entropic 11069 | . . . . . . . . . . . . . . 9973 . . . . . . . 1096 Highest Corruption 44 | . 1 1 1 1 . 2 2 2 2 2 2 2 2 2 . . . . . 10 . 44 Average Corruption 4 | . 1 1 1 1 . 1 2 2 2 1 1 2 2 2 . . . . . 2 . 27 Corruption Purged . | . . . . . . . . . . . . . . . . . . . . . . . Corruption Blocked . | . . . . . . . . . . . . . . . . . . . . . . . Effects 275 | . 6 9 28 11 . 24 8 9 3 4 18 8 17 1 . . . . . 12 . 117 Message Errors 55 | . 2 4 6 5 . 1 1 2 . . 3 3 3 . . . . . . 2 . 23 Matter Fused 56 | . 2 1 7 . . 8 4 3 1 . 3 2 5 . . . . . . 3 . 17 Heat Flow Errors 38 | . 1 . 7 3 . 4 3 1 1 1 . 1 5 1 . . . . . . . 10 Energy Discharges 42 | . 1 3 3 1 . 6 . 3 . 2 4 . 3 . . . . . . 3 . 13 Parts Rejected 5 | . . . . . . . . . . . . . . . . . . . . . . 5 Parts Fused 2 | . . . 1 . . . . . . . . . . . . . . . . . . 1 Data Loss (minor) 24 | . . . 3 . . 4 . . . 1 1 1 1 . . . . . . 1 . 12 Data Loss (major) 13 | . . 1 . . . 1 . . 1 . 3 . . . . . . . . 1 . 6 Misfires 8 | . . . 1 . . . . . . . 4 1 . . . . . . . 1 . 1 Alerts 3 | . . . . 1 . . . . . . . . . . . . . . . 1 . 1 Misdirections 14 | . . . . . . . . . . . . . . . . . . . . . . 14 Weapon Failures 15 | . . . . 1 . . . . . . . . . . . . . . . . . 14 Overload Shots . | . . . . . . . . . . . . . . . . . . . . . . . Overflow Damage 1460 | . 3 . . 28 . 527 . . . . 205 . . 165 . 149 . . . . 4 379 Projectiles 447 | . 3 . . 28 . 21 . . . . . . . 16 . . . . . . . 379 Explosions 541 | . . . . . . 40 . . . . 199 . . 149 . 149 . . . . 4 . Melee 472 | . . . . . . 466 . . . . 6 . . . . . . . . . . . Knockbacks 10 | . . . . . . 7 . . . . 2 . . . . . . . . . . 1 Impact 4 | . . . . . . 3 . . . . 1 . . . . . . . . . . . Kinetic 4 | . . . . . . 3 . . . . . . . . . . . . . . . 1 Secondary 2 | . . . . . . 1 . . . . 1 . . . . . . . . . . . Self-Inflicted Damage 466 | . . . . . . 25 . . . . 358 . . . . 56 . . . . 13 14 Shots 9 | . . . . . . 1 . . . . 5 . . . . 1 . . . . 1 1 Rammed 4 | . . . . . . . . . . . . . . . . . . . . . . 4 Targets Rammed 18 | . . . . . . 1 . . . . 1 . . . . . 11 . . 1 . 4 Kicked 14 | . . . . . . 1 . . . . 1 . . . . . 11 . . 1 . . Crushed . | . . . . . . . . . . . . . . . . . . . . . . . Highest Temperature 368 | 40 325 229 219 273 . 329 366 144 63 204 348 93 252 209 84 54 6 63 84 279 30 368 Average Temperature 69 | 20 106 82 53 86 . 75 118 71 35 104 75 27 72 59 32 15 4 33 29 101 5 73 Received Heat Transfer 1990 | . 186 111 99 . . 546 9 . . . 198 . 121 9 21 84 97 4 . 90 20 395 Effects 8 | . . 2 . 3 . 1 1 . . . . . . . . . . . . . . 1 Energy Bleed 1 | . . . . . . . 1 . . . . . . . . . . . . . . . Interference 5 | . . 2 . 3 . . . . . . . . . . . . . . . . . . Matter Decay 1 | . . . . . . 1 . . . . . . . . . . . . . . . . Short Circuit 1 | . . . . . . . . . . . . . . . . . . . . . . 1 Siege Activations 6 | . . . . . . . . . . . . . . . . . . . . . . 6 Total Turns 199 | . . . . . . . . . . . . . . . . . . . . . . 199 Longest Duration 71 | . . . . . . . . . . . . . . . . . . . . . . 71 Martial Activations . | . . . . . . . . . . . . . . . . . . . . . . . Shielding Activations . | . . . . . . . . . . . . . . . . . . . . . . . Robots Disrupted . | . . . . . . . . . . . . . . . . . . . . . . . Combat Hostiles . | . . . . . . . . . . . . . . . . . . . . . . . Robots Corrupted 4 | . . . . . . 3 . . . . 1 . . . . . . . . . . . Combat Hostiles 2 | . . . . . . 2 . . . . . . . . . . . . . . . . Parts Fried 8 | . . . . . . 5 . . . . 2 . . . . . . . . . . 1 Impact Corruptions 15 | . . . . . . 14 . . . . 1 . . . . . . . . . . . Robots Melted 6 | . . . . . . 1 . . . . . . . . . . . . . . . 5 Combat Hostiles 5 | . . . . . . 1 . . . . . . . . . . . . . . . 4 Parts Melted 30 | . 4 1 3 . . . . . . 1 4 . . . . 4 2 . 3 . 3 5 Heat Transferred 15289 | 275 1221 629 1161 322 . 518 407 148 . 629 1332 74 1073 . 333 2150 925 555 1813 1369 157 198 Parts Sabotaged 4 | . . . . . . 2 . . . . . . . . . . . . . . . 2 Parts Stolen . | . . . . . . . . . . . . . . . . . . . . . . . Parts Stripped . | . . . . . . . . . . . . . . . . . . . . . . . Power Chain Reactions 1 | . . . . . . . . . . . . . . . . . . . . . . 1 Alert | -11 -10 -10 -10 -9 -9 -6 -6 -6 -6 -5 -5 -5 -5 -5 -4 -4 -4 -4 -4 -4 -3 -3 ------- Run | Yrd Mat Min Sub Rec Scr Fac Low Low Zio Pro Fac Upp Upp War Pro Fac Ext Cet Arc Hub Res Arm Maximum Alert Level 4 | . . . . . . 2 . . . . 2 . . . . 1 1 2 2 2 . 4 Low Security (%) 76 | 100 100 100 . 100 . 26 . . . . 63 . . . . 46 58 50 95 37 100 26 Level 1 12 | . . . . . . 9 . . . . 29 . . . . 53 41 44 4 58 . 2 Level 2 8 | . . . . . . 64 . . . . 7 . . . . . . 5 . 4 . 34 Level 3 2 | . . . . . . . . . . . . . . . . . . . . . . 35 Level 4 . | . . . . . . . . . . . . . . . . . . . . . . 1 Level 5 . | . . . . . . . . . . . . . . . . . . . . . . . High Security . | . . . . . . . . . . . . . . . . . . . . . . . Max Security . | . . . . . . . . . . . . . . . . . . . . . . . Peak Influence 1317 | 15 62 78 . 31 . 628 . . . . 479 . . . . 354 357 642 414 458 115 1317 Initial 253 | . . . . 9 . . . . . . . . . . . . 164 163 253 . 105 . Average 119 | 2 14 23 . 1 . 371 . . . . 164 . . . . 160 172 210 17 207 37 534 Influence Increases 10665 | 30 235 295 188 55 . 1329 65 75 . 89 1134 40 175 625 50 652 720 1108 268 961 251 2320 Destroy 0b10 Robot/C 5400 | . 140 240 100 40 . 740 40 60 . 60 540 40 140 560 40 260 280 440 80 400 100 1100 Destroy 0b10 Robot/NC 340 | 30 20 15 . 5 . 40 10 5 . . 30 . . 20 . 50 25 10 45 10 10 15 Destroy Leader 860 | . 44 40 10 . . 176 . 10 . 20 116 . 20 . 10 52 44 40 . 102 22 154 Allied During Kill 1102 | . . . 3 . . 24 . . . 9 . . . . . . 228 480 101 112 . 145 Trap Triggered on 0b10 10 | . . . . . . . . . . . 10 . . . . . . . . . . . Successful Hack 143 | . . . . . . 11 . . . . 27 . . . . 19 5 . . 10 56 15 Disable Machine 600 | . . . . . . 120 . . . . 105 . . . . 60 30 . 30 120 15 120 Destroy Structure 1265 | . 1 . . 10 . 128 . . . . 276 . . . . 196 108 138 12 162 48 186 Partial Spotted 75 | . . . . . . 30 . . . . 15 . . . . . . . . 15 . 15 Lose Combat Pursuer 870 | . 30 . 75 . . 60 15 . . . 15 . 15 45 . 15 . . . 30 . 570 Influence Decreases 9348 | 30 235 287 175 76 . 851 543 71 4 89 661 486 202 170 505 316 764 766 902 759 453 1003 Entered New Map 1615 | . . . 5 12 . . 178 . 4 . . 176 6 . 455 . 172 129 381 . 97 . Time Decay 6217 | 30 235 267 170 64 . 550 365 71 . 69 471 310 196 170 50 316 479 477 521 427 336 643 Lost Part 431 | . . 20 . . . 121 . . . . 30 . . . . . . . . 40 20 200 Lost Ally 635 | . . . . . . 30 . . . 20 10 . . . . . 113 160 . 142 . 160 Purge Threat 450 | . . . . . . 150 . . . . 150 . . . . . . . . 150 . . Squads Dispatched 58 | . 2 . . . . 13 . . . . 11 . . . . 4 1 . . 7 6 14 Investigation 20 | . 1 . . . . 3 . . . . 5 . . . . 3 . . . 1 5 2 Extermination 16 | . . . . . . 5 . . . . 2 . . . . 1 . . . 2 . 6 Reinforcement 17 | . 1 . . . . 2 . . . . 4 . . . . . 1 . . 4 1 4 Assault 2 | . . . . . . . . . . . . . . . . . . . . . . 2 Garrison 3 | . . . . . . 3 . . . . . . . . . . . . . . . . Intercept . | . . . . . . . . . . . . . . . . . . . . . . . Searches Triggered . | . . . . . . . . . . . . . . . . . . . . . . . Unchained Authorized 1 | . . . . . . . . . . . . . . . . . . . . . . 1 Construction Impeded 3 | . . . . . . 1 . . . . 1 . . . . . . . . 1 . . Haulers Reinforced . | . . . . . . . . . . . . . . . . . . . . . . . Active Scanning Responses . | . . . . . . . . . . . . . . . . . . . . . . . Cargo Convoy Interrupts 1 | . . . . . . 1 . . . . . . . . . . . . . . . . Stealth | -11 -10 -10 -10 -9 -9 -6 -6 -6 -6 -5 -5 -5 -5 -5 -4 -4 -4 -4 -4 -4 -3 -3 --------- Run | Yrd Mat Min Sub Rec Scr Fac Low Low Zio Pro Fac Upp Upp War Pro Fac Ext Cet Arc Hub Res Arm Distress Signals 30 | . 2 . . . . . . . . . 2 . . 2 . 1 3 3 . 4 9 4 Communications Jammed . | . . . . . . . . . . . . . . . . . . . . . . . Distress Signals . | . . . . . . . . . . . . . . . . . . . . . . . Times Spotted 511 | . 10 13 21 1 . 59 3 3 . 2 38 3 7 75 3 18 15 19 36 45 31 109 Peak Tracking Total 24 | . 3 3 6 1 . 13 2 3 . 1 6 3 4 16 1 6 4 5 1 13 6 24 Tactical Retreats 24 | . 2 . 3 . . 3 1 . . . 1 . 1 2 . 1 . . . 1 . 9 Traps | -11 -10 -10 -10 -9 -9 -6 -6 -6 -6 -5 -5 -5 -5 -5 -4 -4 -4 -4 -4 -4 -3 -3 ------- Run | Yrd Mat Min Sub Rec Scr Fac Low Low Zio Pro Fac Upp Upp War Pro Fac Ext Cet Arc Hub Res Arm Traps Triggered 10 | . 4 . . . . 1 . . . . 1 . . . . 1 2 . . . . 1 Indirectly . | . . . . . . . . . . . . . . . . . . . . . . . Trap Hack Attempts 14 | . . . . . . 14 . . . . . . . . . . . . . . . . Triggered . | . . . . . . . . . . . . . . . . . . . . . . . Disarmed 1 | . . . . . . 1 . . . . . . . . . . . . . . . . Reprogrammed . | . . . . . . . . . . . . . . . . . . . . . . . Reused 3 | . . . 2 . . . . . . . 1 . . . . . . . . . . . Traps Extracted . | . . . . . . . . . . . . . . . . . . . . . . . Installed 4 | . . . 2 . . . . 1 . . 1 . . . . . . . . . . . Triggered 2 | . . . 1 . . . . . . . 1 . . . . . . . . . . . Most Traps Carried 4 | . . . 2 . . . 4 4 4 2 1 . . . . . . . . . . . Machines | -11 -10 -10 -10 -9 -9 -6 -6 -6 -6 -5 -5 -5 -5 -5 -4 -4 -4 -4 -4 -4 -3 -3 ---------- Run | Yrd Mat Min Sub Rec Scr Fac Low Low Zio Pro Fac Upp Upp War Pro Fac Ext Cet Arc Hub Res Arm Machines Disabled 44 | . . . 1 . . 8 . . . . 7 . . 3 . 4 2 . 2 8 1 8 Max in Single Turn 4 | . . . 1 . . 1 . . . . 4 . . 2 . 4 1 . 1 1 1 1 Garrison Access 5 | . . . . . . . . . . . 2 . . . . 1 . . . . 2 . Network Hub 1 | . . . . . . . . . . . . . . . . . . . . 1 . . Machines Repaired . | . . . . . . . . . . . . . . . . . . . . . . . Machines Dismantled 2 | . . . . . . . . . . . . . . 1 . . . . . 1 . . Machines Sabotaged . | . . . . . . . . . . . . . . . . . . . . . . . Overloaded Fab Kills . | . . . . . . . . . . . . . . . . . . . . . . . Hacking | -11 -10 -10 -10 -9 -9 -6 -6 -6 -6 -5 -5 -5 -5 -5 -4 -4 -4 -4 -4 -4 -3 -3 --------- Run | Yrd Mat Min Sub Rec Scr Fac Low Low Zio Pro Fac Upp Upp War Pro Fac Ext Cet Arc Hub Res Arm Machines Accessed 68 | . . . 4 . 3 9 . . . . 17 3 . 1 . 10 4 . . 3 10 4 Terminals 29 | . . . . . . 4 . . . . 9 . . . . 5 4 . . 3 3 1 Fabricators 7 | . . . . . . 1 . . . . 2 . . . . 1 . . . . 1 2 Repair Stations 2 | . . . . . . . . . . . . . . . . 1 . . . . 1 . Recycling Units 11 | . . . . . . 2 . . . . 3 . . . . 2 . . . . 3 1 Scanalyzers 2 | . . . . . . 1 . . . . 1 . . . . . . . . . . . Garrison Access 6 | . . . . . . 1 . . . . 2 . . . . 1 . . . . 2 . Total Hacks 188 | . . . 7 . 13 24 . . . . 68 6 . 1 . 18 5 . . 11 26 9 Successful 110 | . . . 7 . 13 13 . . . . 28 6 . 1 . 12 4 . . 4 15 7 Failed 77 | . . . . . . 11 . . . . 39 . . . . 6 1 . . 7 11 2 Catastrophic 10 | . . . . . . 4 . . . . 5 . . . . 1 . . . . . . Database Lockouts 1 | . . . . . . . . . . . 1 . . . . . . . . . . . Manual 70 | . . . . . . 6 . . . . 28 . . . . 10 . 1 . 8 15 2 Terminals 95 | . . . . . . 10 . . . . 45 . . . . 10 5 . . 11 11 3 Fabricators 17 | . . . . . . 2 . . . . 7 . . . . 1 . . . . 3 4 Repair Stations 7 | . . . . . . . . . . . . . . . . 4 . . . . 3 . Recycling Units 18 | . . . . . . 2 . . . . 7 . . . . 2 . . . . 5 2 Scanalyzers 12 | . . . . . . 7 . . . . 5 . . . . . . . . . . . Garrison Access 12 | . . . . . . 3 . . . . 4 . . . . 1 . . . . 4 . Terminal Hacks 53 | . . . 7 . 13 2 . . . . 11 6 . 1 . 3 4 . . 2 2 2 Record 22 | . . . 4 . 13 . . . . . . 4 . . . . . . . . 1 . Part Schematic 1 | . . . . . . . . . . . . . . . . . . . . . 1 . Robot Schematic 1 | . . . . . . . . . . . . . . . . . . . . . . 1 Open Door 9 | . . . 1 . . . . . . . . 2 . 1 . 1 4 . . . . . Branch Access Points 3 | . . . . . . 1 . . . . 1 . . . . 1 . . . . . . Garrison Index 1 | . . . . . . . . . . . . . . . . . . . . . . 1 Alert Level 1 | . . . . . . . . . . . 1 . . . . . . . . . . . Unreport Threat 3 | . . . . . . 1 . . . . 1 . . . . . . . . 1 . . Locate Traps 2 | . . . . . . . . . . . 2 . . . . . . . . . . . Reinforcement Status 1 | . . . . . . . . . . . 1 . . . . . . . . . . . Recall Investigation 1 | . . . . . . . . . . . 1 . . . . . . . . . . . Recall Extermination 1 | . . . . . . . . . . . 1 . . . . . . . . . . . Recall Reinforcements 2 | . . . . . . . . . . . 2 . . . . . . . . . . . Hauler Manifests 1 | . . . . . . . . . . . . . . . . 1 . . . . . . Zone Layout 2 | . . . . . . . . . . . 1 . . . . . . . . 1 . . Proto ID Catalog 1 | . . . 1 . . . . . . . . . . . . . . . . . . . Release Object 1 | . . . 1 . . . . . . . . . . . . . . . . . . . Fabricator Hacks 13 | . . . . . . 2 . . . . 3 . . . . 1 . . . . 3 4 Load Schematic 6 | . . . . . . 1 . . . . 2 . . . . . . . . . 1 2 Build 7 | . . . . . . 1 . . . . 1 . . . . 1 . . . . 2 2 Repair Station Hacks 6 | . . . . . . . . . . . . . . . . 4 . . . . 2 . Scan Component 3 | . . . . . . . . . . . . . . . . 2 . . . . 1 . Repair 3 | . . . . . . . . . . . . . . . . 2 . . . . 1 . Recycling Unit Hacks . | . . . . . . . . . . . . . . . . . . . . . . . Scanalyzer 8 | . . . . . . 5 . . . . 3 . . . . . . . . . . . Insert Component 1 | . . . . . . 1 . . . . . . . . . . . . . . . . Analyze 1 | . . . . . . 1 . . . . . . . . . . . . . . . . Retrieve Study 6 | . . . . . . 3 . . . . 3 . . . . . . . . . . . Garrison Access Hacks 5 | . . . . . . . . . . . 2 . . . . 1 . . . . 2 . Seal Access 5 | . . . . . . . . . . . 2 . . . . 1 . . . . 2 . Unauthorized Hacks 25 | . . . . . . 4 . . . . 9 . . . . 3 . . . 2 6 1 Terminals 14 | . . . . . . 2 . . . . 6 . . . . 1 . . . 2 3 . Track 2 | . . . . . . . . . . . 1 . . . . 1 . . . . . . Assimilate 2 | . . . . . . 1 . . . . 1 . . . . . . . . . . . Botnet 6 | . . . . . . 1 . . . . 4 . . . . . . . . 1 . . Operators 1 | . . . . . . . . . . . . . . . . . . . . . 1 . Skim 2 | . . . . . . . . . . . . . . . . . . . . . 2 . Sabotage 1 | . . . . . . . . . . . . . . . . . . . . 1 . . Fabricators . | . . . . . . . . . . . . . . . . . . . . . . . Repair Stations . | . . . . . . . . . . . . . . . . . . . . . . . Recycling Units 11 | . . . . . . 2 . . . . 3 . . . . 2 . . . . 3 1 Fedlink 10 | . . . . . . 2 . . . . 3 . . . . 2 . . . . 3 . Scrapoids 1 | . . . . . . . . . . . . . . . . . . . . . . 1 Scanalyzers . | . . . . . . . . . . . . . . . . . . . . . . . Garrison Access . | . . . . . . . . . . . . . . . . . . . . . . . Data Cores Recovered 1 | . . . . . . . . . . . . . . . . 1 . . . . . . Used 1 | . . . . . . . . . . . . . . . . 1 . . . . . . Hacking Detections 35 | . . . . . . 7 . . . . 11 . . . . 4 . . . 3 8 2 Full Trace Events 4 | . . . . . . 1 . . . . 2 . . . . . . . . . 1 . Feedback Events . | . . . . . . . . . . . . . . . . . . . . . . . Feedback Blocked . | . . . . . . . . . . . . . . . . . . . . . . . Robot Schematics Acquired 5 | . . . . . . . . . 4 . . . . . . . . . . . . 1 Robots Built 4 | . . . . . . . . . . . . . . . . . . . . . . 4 Authchips 2 | . . . . . . . . . . . . . . . . . . . . . . 2 Time 170 | . . . . . . . . . . . . . . . . . . . . . . 170 Total Robot Build Rating 32 | . . . . . . . . . . . . . . . . . . . . . . 32 Part Schematics Acquired 37 | . . . . . 14 8 . . 14 . . . . . . . . . . . 1 . Parts Built 8 | . . . . . . 2 . . . . 1 . . . . 2 . . . . 3 . Authchips . | . . . . . . . . . . . . . . . . . . . . . . . Time 567 | . . . . . . 95 . . . . 42 . . . . 139 . . . . 291 . Total Part Build Rating 55 | . . . . . . 10 . . . . 4 . . . . 18 . . . . 23 . Part Studies Acquired 6 | . . . . . . 3 . . . . 3 . . . . . . . . . . . Parts Repaired 3 | . . . . . . . . . . . . . . . . 2 . . . . 1 . Time 148 | . . . . . . . . . . . . . . . . 112 . . . . 36 . Parts Recycled . | . . . . . . . . . . . . . . . . . . . . . . . Recycled Matter . | . . . . . . . . . . . . . . . . . . . . . . . Retrieved Matter . | . . . . . . . . . . . . . . . . . . . . . . . Retrieved Components . | . . . . . . . . . . . . . . . . . . . . . . . Parts Scanalyzed 1 | . . . . . . 1 . . . . . . . . . . . . . . . . Part Schematics Acquired 1 | . . . . . . 1 . . . . . . . . . . . . . . . . Parts Damaged . | . . . . . . . . . . . . . . . . . . . . . . . Bothacking | -11 -10 -10 -10 -9 -9 -6 -6 -6 -6 -5 -5 -5 -5 -5 -4 -4 -4 -4 -4 -4 -3 -3 ------------ Run | Yrd Mat Min Sub Rec Scr Fac Low Low Zio Pro Fac Upp Upp War Pro Fac Ext Cet Arc Hub Res Arm Used RIF Installer . | . . . . . . . . . . . . . . . . . . . . . . . Robots Hacked 2 | . . . . . 2 . . . . . . . . . . . . . . . . . Non-combat . | . . . . . . . . . . . . . . . . . . . . . . . Combat 2 | . . . . . 2 . . . . . . . . . . . . . . . . . Robot Hacks Applied 2 | . . . . . 2 . . . . . . . . . . . . . . . . . parse_system 2 | . . . . . 2 . . . . . . . . . . . . . . . . . Relay Couplers Released . | . . . . . . . . . . . . . . . . . . . . . . . Fabnet Peak Effective % . | . . . . . . . . . . . . . . . . . . . . . . . Robots Rewired 12 | . . . . . . . . . . . . . . . . . 9 . . . . 3 Allies Hacked 2 | . . . . . . . . . . . . . . . . . . . . . . 2 Hacks Repelled 1 | . . . . . . . . . . . . . . 1 . . . . . . . . Allies | -11 -10 -10 -10 -9 -9 -6 -6 -6 -6 -5 -5 -5 -5 -5 -4 -4 -4 -4 -4 -4 -3 -3 -------- Run | Yrd Mat Min Sub Rec Scr Fac Low Low Zio Pro Fac Upp Upp War Pro Fac Ext Cet Arc Hub Res Arm Total Allies 46 | . . 2 . . 1 1 . . 3 . 1 . . . . . 19 6 . . . 13 Largest Group 14 | . . 2 2 . 1 1 . . 3 3 1 . . . . . 13 14 8 8 . 5 Highest-Rated Group 1024 | . . 47 47 . 68 68 . . 113 113 26 . . . . . 701 1024 670 670 . 320 Highest-Rated Ally 159 | . . 31 31 . 68 68 . . 51 51 26 . . . . . 159 159 108 108 . 64 Initial UFD Resources 90 | . . . . . . 23 37 37 37 39 39 55 55 55 58 58 72 72 72 72 74 90 Total Orders 20 | . . . . . 2 2 . . . . . . . . . . 8 2 3 3 . . STAY 11 | . . . . . 1 1 . . . . . . . . . . 4 1 2 2 . . FOLLOW 9 | . . . . . 1 1 . . . . . . . . . . 4 1 1 1 . . Ally Attacks 497 | . . . 18 . . 17 . . . 13 . . . . . . 94 181 12 53 . 109 Total Damage 14197 | . . . 273 . . 845 . . . 175 . . . . . . 2188 4255 454 1967 . 4040 Kills 71 | . . . 3 . . 9 . . . 2 . . . . . . 11 19 4 4 . 19 Allies Corrupted 3 | . . . . . . . . . . . . . . . . . . . . . . 3 Allies Melted 3 | . . . . . . 1 . . . . . . . 2 . . . . . . . . Intel | -11 -10 -10 -10 -9 -9 -6 -6 -6 -6 -5 -5 -5 -5 -5 -4 -4 -4 -4 -4 -4 -3 -3 ------- Run | Yrd Mat Min Sub Rec Scr Fac Low Low Zio Pro Fac Upp Upp War Pro Fac Ext Cet Arc Hub Res Arm Active Infowar (turns) 41072 | 11 941 792 408 1041 1578 2094 915 1007 1658 691 1843 691 956 1530 724 932 1651 1305 16457 1051 1140 1656 Optics 35355 | . . . . . . 1576 915 1007 1658 691 1843 691 956 1530 724 932 1651 1305 16457 1051 1140 1228 Sensors 5887 | . . . . . . 648 915 1007 1657 605 1055 . . . . . . . . . . . IFF 1001 | . . . . . . 487 . . . . . . . . . . . . 34 480 . . Structural 4702 | . . . 408 1041 1577 . . . . . . 305 311 41 243 188 1 . . 384 . 203 Seismic 2198 | 11 941 792 . . 1 31 . . . . . . . . . . . . . . . 422 Robot Analysis Total . | . . . . . . . . . . . . . . . . . . . . . . . Derelict Logs Recovered 16 | . . 2 2 . 3 . . . 1 3 . 1 1 . 3 . . . . . . . Drone Launches 1 | . . . . . . . . . . 1 . . . . . . . . . . . . Drone Recoveries . | . . . . . . . . . . . . . . . . . . . . . . . Exploration | -11 -10 -10 -10 -9 -9 -6 -6 -6 -6 -5 -5 -5 -5 -5 -4 -4 -4 -4 -4 -4 -3 -3 ------------- Run | Yrd Mat Min Sub Rec Scr Fac Low Low Zio Pro Fac Upp Upp War Pro Fac Ext Cet Arc Hub Res Arm Turns Passed 52991 | 171 941 1061 3913 1049 8184 2704 915 1007 1658 691 1843 691 956 1530 727 932 1651 1305 16457 1051 1140 2414 Spaces Moved 24522 | 104 578 630 3233 674 4949 1330 467 487 942 334 1336 545 616 1176 646 608 1030 392 1174 657 793 1821 Core 947 | 1 . . . . . 39 . . . . . . . . . . . . 813 . . 94 Treads 2720 | . 117 11 15 . 1858 427 . . . . . . . . . . . . . . 116 176 Legs 11097 | . . . . . . 823 467 487 942 334 1336 545 616 1176 646 608 1030 392 361 657 677 . Wheels 8166 | 103 461 619 3218 674 3091 . . . . . . . . . . . . . . . . . Hover 1569 | . . . . . . 18 . . . . . . . . . . . . . . . 1551 Flight 23 | . . . . . . 23 . . . . . . . . . . . . . . . . Fastest Speed 40 | 50 80 135 80 140 80 40 103 175 175 175 105 105 105 101 104 104 101 101 101 101 105 45 Average Speed 185 | 89 112 142 104 140 163 151 173 175 175 175 111 105 105 103 104 105 102 101 1381 103 118 58 Slowest Speed 1950 | 100 320 320 260 140 360 260 175 175 175 175 178 105 105 105 104 106 106 101 1950 109 180 225 Overloaded Moves . | . . . . . . . . . . . . . . . . . . . . . . . Propulsion Burnouts . | . . . . . . . . . . . . . . . . . . . . . . . Robots Hopped . | . . . . . . . . . . . . . . . . . . . . . . . Potential Cave-ins 8 | . . . . . . . . . . . . . . . . . 8 . . . . . Cave-ins Triggered . | . . . . . . . . . . . . . . . . . . . . . . . Exploration Rate (%) 67 | 6 96 99 95 85 90 31 67 66 82 62 36 82 74 95 82 19 70 61 100 51 29 66 Regions Visited 22 Branch Regions 17 Pre-discovered Areas 11 | . . . 1 . 3 1 . . 2 3 . 1 . . . . . . . . . . Known Exits Taken 11 | . . . . . . 1 1 1 1 1 1 1 1 . 1 1 . . . . 1 . Unknown Exits Taken 11 | 1 1 1 1 1 1 . . . . . . . . 1 . . 1 1 1 1 . . Scrap Searched 28 | . . 1 9 . 6 . 2 . 2 3 . 1 1 . 3 . . . . . . . Spaces Dug 138 | . 1 . 6 3 . 18 5 6 . 1 18 6 4 6 3 9 18 . . 10 1 23 Terrain Destroyed 1023 | . 1 . 9 10 . 100 23 59 . 14 194 12 17 160 9 108 50 63 5 89 29 71 Melee 8 | . . . . . . 1 . . . . 7 . . . . . . . . . . . Projectile 406 | . 1 . 9 10 . 28 23 17 . 14 28 12 17 8 9 30 50 7 5 74 1 63 AOE 606 | . . . . . . 71 . 42 . . 159 . . 152 . 78 . 56 . 14 28 6 Terrain Rammed . | . . . . . . . . . . . . . . . . . . . . . . . Walls Destroyed . | . . . . . . . . . . . . . . . . . . . . . . . Machines Disabled . | . . . . . . . . . . . . . . . . . . . . . . . Actions | -11 -10 -10 -10 -9 -9 -6 -6 -6 -6 -5 -5 -5 -5 -5 -4 -4 -4 -4 -4 -4 -3 -3 --------- Run | Yrd Mat Min Sub Rec Scr Fac Low Low Zio Pro Fac Upp Upp War Pro Fac Ext Cet Arc Hub Res Arm Total 30508 | 148 793 715 3590 755 5075 1848 545 619 951 415 1591 648 877 1459 680 812 1554 1273 1355 900 974 2931 Wait 3989 | 15 150 16 163 52 37 291 39 109 3 54 143 85 228 204 18 115 373 790 121 159 112 712 Move 24501 | 103 577 629 3232 673 4948 1330 466 486 941 333 1335 544 615 1175 645 607 1029 391 1173 656 792 1821 Hop . | . . . . . . . . . . . . . . . . . . . . . . . Pick Up 218 | 6 3 11 31 7 37 24 6 1 2 3 12 . . 8 . 8 5 15 2 2 7 28 Fast Attach 151 | 7 5 . 10 . 11 31 1 . . . 2 . . 9 . 6 4 16 . 3 11 35 Attach 88 | . 2 4 4 . 3 9 2 . . 1 7 2 2 4 . 8 2 3 1 2 7 25 Detach 25 | . . 1 1 . 2 7 1 . . . 1 1 2 1 . 1 2 . . . 2 3 Swap 161 | 1 15 8 19 . 1 19 3 1 2 2 17 6 6 4 7 6 6 6 . 8 5 19 Drop 252 | . 2 . 33 1 33 18 8 1 2 3 10 . . 18 . 11 9 29 2 5 18 49 Fire 929 | 16 39 46 82 22 1 57 19 20 1 19 51 10 24 28 10 50 50 23 56 61 20 224 Melee 60 | . . . . . 2 47 . . . . 11 . . . . . . . . . . . Ram 6 | . . . . . . . . . . . . . . . . . . . . . . 6 Kick 13 | . . . . . . . . . . . 1 . . . . . 11 . . 1 . . Crush . | . . . . . . . . . . . . . . . . . . . . . . . Escape Stasis 5 | . . . . . . . . . . . . . . . . . 5 . . . . . Rewire 67 | . . . . . . . . . . . . . . . . . 58 . . . . 9 Trap 18 | . . . 2 . . 14 . 1 . . 1 . . . . . . . . . . . Miscellaneous 25 | . . . 13 . . 1 . . . . . . . 8 . . . . . 3 . . Route ------- -11/Scrapyard -10/Materials (discovered 6 exits: [*Mat x3] / [*Min x2] / *Sub) -10/Mines (discovered 4 exits: [*Mat x2] / [*Exi] / *Sub) -10/Subcaves (discovered 4 exits: [*Mat x2] / [*Rec] / *Scr) -9/Recycling (discovered 2 exits: [*Fac] / *Scr) -9/Scraptown (discovered 2 exits: *Fac x2) -6/Factory (discovered 3 exits: *Fac / *Low x2) -6/Lower Caves -6/Lower Caves (discovered 2 exits: *Fac / *Zio) -6/Zion -5/Proximity Caves -5/Factory (discovered 3 exits: *Fac / *Upp x2) -5/Upper Caves -5/Upper Caves (discovered 2 exits: *Fac / *War) -5/Warlord -4/Proximity Caves -4/Factory (discovered 5 exits: *Res / Upp x2 / *Ext x2) -4/Extension (discovered 2 exits: *Res / *Cet) -4/Cetus (discovered 2 exits: *Res / [*Arc]) -4/Archives (discovered 3 exits: *Res / *Hub x2) -4/Hub_04(d) (discovered 2 exits: *Res x2) -3/Research (discovered 3 exits: *Arm / *Tes x2) -3/Armory History --------- Turn | Location | Event 2 | -11/Scrapyard | Met Revision 17 27 | -11/Scrapyard | Discovered new exit (range 16) 172 | -11/Scrapyard | Entered Materials 172 | -10/Materials | Discovered new exit (range 7) 221 | -10/Materials | Discovered new exit (range 13) 310 | -10/Materials | Build established: Mutant 323 | -10/Materials | Discovered new exit (range 6) 468 | -10/Materials | Discovered new exit (range 4) 710 | -10/Materials | Discovered new exit (range 3) 1077 | -10/Materials | Discovered new exit (range 13) 1113 | -10/Materials | Entered Mines 1160 | -10/Mines | Learned Materials emergency access door positions 1342 | -10/Mines | Deemed a non-threat by the Exiles lab entrance 1342 | -10/Mines | Discovered new exit (range 5) 1547 | -10/Mines | Learned Materials interactive machine intel 1725 | -10/Mines | Discovered new exit (range 3) 1727 | -10/Mines | Discovered new exit (range 11) 1762 | -10/Mines | Core integrity fell below 50% 2160 | -10/Mines | Discovered new exit (range 6) 2174 | -10/Mines | Entered Subcaves 2174 | -10/Subcaves | Accompanied by 2 allies 2175 | -10/Subcaves | Approached by a straggling Scientist 2179 | -10/Subcaves | Led the pair of lost Derelicts to an unsafe place 2403 | -10/Subcaves | Visited 4L-MR0's lab 2568 | -10/Subcaves | Discovered new exit (range 12) 2970 | -10/Subcaves | Build established: Subdweller-Mutant 3067 | -10/Subcaves | Learned location of Zion (-6) 3067 | -10/Subcaves | Met a Zionite searching for "candidates" 3275 | -10/Subcaves | Build established: Scavenger-Mutant 3448 | -10/Subcaves | A swath of the cavern ceiling suddenly collapsed 3502 | -10/Subcaves | A Subdweller sparked back to life 3502 | -10/Subcaves | A Subdweller sparked back to life 3563 | -10/Subcaves | Found Powered Cannon 3639 | -10/Subcaves | Discovered new exit (range 14) 3646 | -10/Subcaves | Shifting Twisted Machinery released Sub. Beam Cannon 3651 | -10/Subcaves | Shifting Twisted Machinery released Sub. Laser 3674 | -10/Subcaves | Build established: Subdweller-Mutant 3893 | -10/Subcaves | Learned Materials terminal intel 4173 | -10/Subcaves | Visited Clippyterm 4176 | -10/Subcaves | Learned Research machine intel 4176 | -10/Subcaves | Learned Factory stockpile data 4247 | -10/Subcaves | A swath of the cavern ceiling suddenly collapsed 4291 | -10/Subcaves | Learned Materials security intel 4388 | -10/Subcaves | Discovered new exit (range 3) 5012 | -10/Subcaves | Shifting Twisted Machinery released Mak. Hacking Suite 5184 | -10/Subcaves | Build established: Scavenger-Mutant 5436 | -10/Subcaves | Shifting Twisted Machinery released Battle Rifle 5437 | -10/Subcaves | Shifting Twisted Machinery released Sub. Monowheel 5565 | -10/Subcaves | Build established: Subdweller-Mutant 5813 | -10/Subcaves | Found Prototype Device 5819 | -10/Subcaves | Found Rainbow Chip 5966 | -10/Subcaves | Build established: Scavenger-Mutant 5998 | -10/Subcaves | Found SUBCON Basin 6087 | -10/Subcaves | Entered Recycling 6390 | -9/Recycling | Discovered new exit (range 6) 6606 | -9/Recycling | Scanned before Scraplab entrance 6621 | -9/Recycling | Discovered new exit (range 11) 6625 | -9/Recycling | Entered Scraplab 7136 | -9/Recycling | Entered Scraptown 7136 | -9/Scraptown | System corruption cleaned by C-Scrubber 7276 | -9/Scraptown | Visited Fellowship of the Rings 7297 | -9/Scraptown | Visited Symbiants 7317 | -9/Scraptown | Visited The Evicted 7342 | -9/Scraptown | Visited Bundlers 7789 | -9/Scraptown | Discovered new exit (range 13) 7867 | -9/Scraptown | Scanned Subdweller tech in exchange for log data 7871 | -9/Scraptown | Learned Research terminal intel 7874 | -9/Scraptown | Learned location of Extension (-4) 7920 | -9/Scraptown | Visited Awakened 7936 | -9/Scraptown | Visited Cyclists 7958 | -9/Scraptown | Visited UFD Registry 7958 | -9/Scraptown | Registered with UFD as "Cryoslasher" 7986 | -9/Scraptown | Entered Cyclist Reading Room 8048 | -9/Scraptown | Visited IN-MT5's Study 8104 | -9/Scraptown | Visited LU-1G1's Boring Crew 8125 | -9/Scraptown | Visited Science Testing Area 8146 | -9/Scraptown | Visited Botcube Research 8170 | -9/Scraptown | Visited Curators Association 8217 | -9/Scraptown | Visited Research Penetration Think Tank 8247 | -9/Scraptown | Visited Abandonware Association 8262 | -9/Scraptown | Learned abandonware demo "ERRANTS.EXE" 8262 | -9/Scraptown | Learned abandonware demo "REBOOT5.EXE" 8291 | -9/Scraptown | Visited Supply Room 8336 | -9/Scraptown | Visited Scrapoid Pod Storage 8361 | -9/Scraptown | Visited Derelict Rescue Squad 8385 | -9/Scraptown | Visited Modified Component R&D 8535 | -9/Scraptown | Delivered Scrap Shield to a Scientist 8730 | -9/Scraptown | Identified Sfc. Transmogrifier 8780 | -9/Scraptown | Tech Extrapolator generated special schematic: Machine Rigger 8817 | -9/Scraptown | Found DRS Beacon 9018 | -9/Scraptown | Build established: Mutant 9132 | -9/Scraptown | Tech Extrapolator generated special schematic: Deep Structural Scanner 9139 | -9/Scraptown | Found Botcube 9237 | -9/Scraptown | Found Scrap Suit 9786 | -9/Scraptown | Botcube activated 9808 | -9/Scraptown | Botcube completed mutation into legged form, armed with 2 guns 10339 | -9/Scraptown | Guru changed UFD alias to "Carbonripper" 11783 | -9/Scraptown | Attached CPS modules to Mutated Botcube 13940 | -9/Scraptown | Build established: Derelict-Mutant 14006 | -9/Scraptown | Found Scrapoid Pod 15169 | -9/Scraptown | Met Optimus 15169 | -9/Scraptown | Accepted into 0bPrime 15307 | -9/Scraptown | Discovered new exit (range 5) 15320 | -9/Scraptown | Entered Factory 15320 | -6/Factory | Accompanied by 1 ally 15320 | -6/Factory | Evolved 8 slots: Propulsion x2, Utility x5, Weapon x1 15636 | -6/Factory | Discovered new exit (range 15) 16051 | -6/Factory | Found Botcube 16101 | -6/Factory | Garrison activated, responded to threat 16418 | -6/Factory | Cargo convoy interrupted 16438 | -6/Factory | Released all parts (6) 16444 | -6/Factory | Core integrity fell below 50% 16448 | -6/Factory | Found Prototype Processor 16448 | -6/Factory | Identified Spectral Analyzer 16450 | -6/Factory | Found Prototype Processor 16450 | -6/Factory | Identified Exp. Melee Analysis Suite 16455 | -6/Factory | Core integrity fell below 20% 16467 | -6/Factory | Lost 6 parts (1p1n3u1w) 16471 | -6/Factory | Build established: Mutant 17017 | -6/Factory | Fabricated Imp. Reaction Control System? 17052 | -6/Factory | Build established: Scavenger-Gunner 17327 | -6/Factory | Loaded intel: 8 recycling unit locations 17446 | -6/Factory | Learned location of Protoforge (-2) 17871 | -6/Factory | Build established: Scavenger-Assassin 17995 | -6/Factory | Identified exit to Lower Caves 18024 | -6/Factory | Entered Lower Caves 18026 | -6/Lower Caves | UFD Scientist delivered a prototype 18066 | -6/Lower Caves | Found Prototype Protection 18066 | -6/Lower Caves | Identified Enh. Scrap Shield 18361 | -6/Lower Caves | Build established: Skirmisher 18806 | -6/Lower Caves | Discovered new exit (range 13) 18849 | -6/Lower Caves | Identified exit to Lower Caves 18939 | -6/Lower Caves | Entered another Lower Caves area 19269 | -6/Lower Caves | Discovered new exit (range 10) 19721 | -6/Lower Caves | Discovered new exit (range 20) 19944 | -6/Lower Caves | Identified exit to Zion 19946 | -6/Lower Caves | Entered Zion 20034 | -6/Zion | System corruption cleaned by Quarantine Array 20153 | -6/Zion | Discovered new exit (range 11) 20456 | -6/Zion | Learned location of Warlord (-5) 20464 | -6/Zion | Learned Factory interactive machine intel 20547 | -6/Zion | Given the Hacking Drone Bay 20660 | -6/Zion | Gained Derelict followers 20702 | -6/Zion | Acquired unknown access codes intercepted by a Zionite 20933 | -6/Zion | Learned Factory emergency access door positions 21291 | -6/Zion | Found Prototype Device 21511 | -6/Zion | Found GAL Module 21593 | -6/Zion | Identified exit to Proximity Caves 21604 | -6/Zion | Entered Proximity Caves 21604 | -5/Proximity Caves | Accompanied by 3 allies 21662 | -5/Proximity Caves | Identified Hacking Drone Bay 22021 | -5/Proximity Caves | Learned location of Armory (-3) 22286 | -5/Proximity Caves | Discovered new exit (range 5) 22293 | -5/Proximity Caves | Identified exit to Factory 22295 | -5/Proximity Caves | Entered Factory 22295 | -5/Factory | Evolved 2 slots: Propulsion x1, Utility x1 22297 | -5/Factory | Loaded intel: 54 interactive machine locations 22600 | -5/Factory | Identified exit to Upper Caves 22870 | -5/Factory | Central database locked down 23214 | -5/Factory | Loaded intel: 8 recycling unit locations 23326 | -5/Factory | Discovered new exit (range 6) 23528 | -5/Factory | Build established: Hacker-Skirmisher 23742 | -5/Factory | Fabricated Deep Structural Scanner (x1) 24138 | -5/Factory | Entered Upper Caves 24151 | -5/Upper Caves | Attracted the attention of an 0b10 checkpoint 24374 | -5/Upper Caves | Build established: Scientist-Mutant 24563 | -5/Upper Caves | Learned Factory emergency access door positions 24563 | -5/Upper Caves | Learned Extension stockpile data 24563 | -5/Upper Caves | Learned Factory security intel 24572 | -5/Upper Caves | Entered an active Warlord outpost 24696 | -5/Upper Caves | Discovered new exit (range 8) 24827 | -5/Upper Caves | Identified exit to Upper Caves 24829 | -5/Upper Caves | Entered another Upper Caves area 24855 | -5/Upper Caves | Discovered new exit (range 6) 24977 | -5/Upper Caves | Identified exit to Factory 24981 | -5/Upper Caves | Encountered a Warlord checkpoint 25097 | -5/Upper Caves | Learned location of 1 exit from Factory 25190 | -5/Upper Caves | Lost 3 allies 25705 | -5/Upper Caves | Discovered new exit (range 22) 25784 | -5/Upper Caves | Identified exit to Warlord 25785 | -5/Upper Caves | Entered Warlord 25838 | -5/Warlord | Discovered new exit (range 16) 25887 | -5/Warlord | System corruption cleaned by Quarantine Array 26346 | -5/Warlord | Rebuked by Warlord 26371 | -5/Warlord | Warlord's base attacked by MAIN.C 26463 | -5/Warlord | Found Prototype Energy Cannon 26463 | -5/Warlord | Identified Vortex Driver 26468 | -5/Warlord | Found Vortex Driver 26470 | -5/Warlord | Found Prototype Launcher 26503 | -5/Warlord | Found Prototype Processor 26505 | -5/Warlord | Identified Vortex Catalyst Activator 26510 | -5/Warlord | Identified Exp. Targeting Computer 26514 | -5/Warlord | Found Prototype Processor 26721 | -5/Warlord | Warlord forces counterattacked 26737 | -5/Warlord | Spotted Executioner 26761 | -5/Warlord | Destroyed 8 combat bots 26766 | -5/Warlord | Spotted Executioner 26768 | -5/Warlord | Lost 3 allies 26797 | -5/Warlord | Build established: Scientist-Gunner 26811 | -5/Warlord | Lost 3 allies 26835 | -5/Warlord | Spotted Executioner 26835 | -5/Warlord | Spotted Executioner 26868 | -5/Warlord | Lost 7 allies 26871 | -5/Warlord | Spotted Executioner 26875 | -5/Warlord | Destroyed Executioner 26896 | -5/Warlord | Destroyed 11 combat bots 26904 | -5/Warlord | Lost 3 allies 27032 | -5/Warlord | Found Prototype Reactor 27046 | -5/Warlord | Warlord base infiltrated, sounded retreat 27199 | -5/Warlord | Spotted B-86 Titan 27215 | -5/Warlord | Spotted Striker 27218 | -5/Warlord | Spotted B-75 Beast 27222 | -5/Warlord | Spotted Executioner 27239 | -5/Warlord | Destroyed B-86 Titan 27271 | -5/Warlord | Spotted Striker 27315 | -5/Warlord | Entered Proximity Caves 27317 | -4/Proximity Caves | Lost 15 allies 27341 | -4/Proximity Caves | Build established: Gunner 27666 | -4/Proximity Caves | Learned Research emergency access door positions 27865 | -4/Proximity Caves | Build established: Scavenger-Gunner 27871 | -4/Proximity Caves | Spotted B-86 Titan 27920 | -4/Proximity Caves | Attracted the attention of an 0b10 checkpoint 27945 | -4/Proximity Caves | Discovered exit to Factory (range 7) 28020 | -4/Proximity Caves | Learned Research garrison access intel 28042 | -4/Proximity Caves | Entered Factory 28042 | -4/Factory | Evolved 2 slots: Power x1, Propulsion x1 28043 | -4/Factory | Identified exit to Upper Caves 28043 | -4/Factory | Identified Vortex Chain Reactor 28162 | -4/Factory | Noticed UFD Elites at a Recycling Unit 28181 | -4/Factory | Loaded intel: 8 recycling unit locations 28263 | -4/Factory | Fabricated Enh. Quantum Rifle (x2) 28374 | -4/Factory | Build established: Hacker-Gunner 28420 | -4/Factory | Identified exit to Extension 28460 | -4/Factory | Discovered new exit (range 10) 28700 | -4/Factory | Repaired Adv. Shield Generator 28757 | -4/Factory | Repaired Adv. Cooling System 28974 | -4/Factory | Entered Extension 29011 | -4/Extension | Rescued a captive Derelict 29377 | -4/Extension | Build established: Scavenger-Gunner 29535 | -4/Extension | Spotted B-86 Titan 29547 | -4/Extension | Rescued a captive Derelict 29784 | -4/Extension | Rescued A7 29901 | -4/Extension | Rescued a captive Derelict 29902 | -4/Extension | Rescued a captive Derelict 30130 | -4/Extension | Lost 5 allies 30434 | -4/Extension | Scrapoid Pod released 04E05-D (x5) 30441 | -4/Extension | Attached CPS modules to A7 30565 | -4/Extension | Discovered new exit (range 10) 30566 | -4/Extension | Discovered new exit (range 6) 30625 | -4/Extension | Entered Cetus 30625 | -4/Cetus | Accompanied by 13 allies (A7) 30630 | -4/Cetus | Acquired a Cetus Manufacturing Module code from A7 30637 | -4/Cetus | Spotted Cetus Guard 30637 | -4/Cetus | Spotted Cetus Guard 30639 | -4/Cetus | Spotted Cetus Guard 30643 | -4/Cetus | Spotted Cetus Guard 30649 | -4/Cetus | Allies destroyed Cetus Guard 30650 | -4/Cetus | Attached CPS modules to Cetus Guard 30656 | -4/Cetus | Destroyed Cetus Guard 30660 | -4/Cetus | Destroyed Cetus Guard 30663 | -4/Cetus | Allies destroyed Cetus Guard 31375 | -4/Cetus | Security sweep announced 31518 | -4/Cetus | Botcube activated 31540 | -4/Cetus | Botcube completed mutation into treaded form, armed with 2 guns 31551 | -4/Cetus | Started Cetus Manufacturing Module 31555 | -4/Cetus | Discovered new exit (range 23) 31576 | -4/Cetus | Manufactured an Enhanced Grunt 31601 | -4/Cetus | Manufactured an Enhanced Grunt 31626 | -4/Cetus | Manufactured an Enhanced Grunt 31651 | -4/Cetus | Manufactured an Enhanced Grunt 31669 | -4/Cetus | Build established: Commander-Gunner 31676 | -4/Cetus | Manufactured an Enhanced Grunt 31689 | -4/Cetus | Spotted Cetus Guard 31689 | -4/Cetus | Spotted Cetus Guard 31691 | -4/Cetus | Spotted Cetus Guard 31701 | -4/Cetus | Allies destroyed Cetus Guard 31702 | -4/Cetus | Allies destroyed Cetus Guard 31703 | -4/Cetus | Spotted Cetus Guard 31711 | -4/Cetus | Allies destroyed Cetus Guard 31714 | -4/Cetus | Allies destroyed Cetus Guard 31723 | -4/Cetus | Discovered new exit (range 22) 31759 | -4/Cetus | Murdered A7 31761 | -4/Cetus | Extracted ID and sensor layout for unrecognized location from A7's data core 31768 | -4/Cetus | Found Prototype Protection 31768 | -4/Cetus | Identified Med. Regenerative Plating 31816 | -4/Cetus | Met Revision 17 31930 | -4/Cetus | Entered Archives 31930 | -4/Archives | Accompanied by 8 allies 31967 | -4/Archives | Discovered new exit (range 23) 31977 | -4/Archives | Discovered new exit (range 17) 31983 | -4/Archives | Discovered new exit (range 17) 32078 | -4/Archives | Build established: Commander-Tank 48387 | -4/Archives | Entered Hub_04(d) 48387 | -4/Hub_04(d) | Accompanied by 8 allies 48388 | -4/Hub_04(d) | Discovered new exit (range 20) 48555 | -4/Hub_04(d) | Spotted B-86 Titan 48615 | -4/Hub_04(d) | Allies destroyed B-86 Titan 48636 | -4/Hub_04(d) | Discovered new exit (range 15) 49008 | -4/Hub_04(d) | Build established: Scavenger-Tank 49269 | -4/Hub_04(d) | Found Botcube 49325 | -4/Hub_04(d) | Network Hub disabled 49347 | -4/Hub_04(d) | Spotted Lightning 49350 | -4/Hub_04(d) | Spotted Lightning 49352 | -4/Hub_04(d) | Spotted Lightning 49432 | -4/Hub_04(d) | Spotted Lightning 49432 | -4/Hub_04(d) | Spotted Lightning 49432 | -4/Hub_04(d) | Spotted Lightning 49437 | -4/Hub_04(d) | System corruption reached 10% 49438 | -4/Hub_04(d) | Entered Research 49438 | -3/Research | Evolved 2 slots: Utility x2 49439 | -3/Research | Identified exit to Armory 49439 | -3/Research | Identified exit to Testing 49441 | -3/Research | Loaded intel: 94 machine locations 49442 | -3/Research | Loaded intel: 19 terminal locations 49443 | -3/Research | Loaded intel: 4 garrison access locations 49480 | -3/Research | Identified Exp. Target Analyzer 49623 | -3/Research | Repaired Enh. Biometal Leg 49638 | -3/Research | Revision forces began assault on 0b10 49665 | -3/Research | Loaded intel: 5 recycling unit locations 49676 | -3/Research | Spotted B-86 Titan 49719 | -3/Research | Met up with Revision 17++ 49894 | -3/Research | Spotted B-86 Titan 50006 | -3/Research | Fabricated Enh. Quantum Rifle (x2) 50084 | -3/Research | Lost 6 allies 50108 | -3/Research | Found Prototype Launcher 50138 | -3/Research | Research terminal network offline 50164 | -3/Research | Fabricated Exp. Weapon Shielding (x1) 50269 | -3/Research | Attached Powered Cannon, gained temporary slot: Power 50272 | -3/Research | Found Gamma Bomb Array 50387 | -3/Research | Discovered exit to Testing (range 5) 50578 | -3/Research | Build established: Hacker-Mutant 50578 | -3/Research | Entered Armory 51270 | -3/Armory | Build established: Hacker-Tank 51285 | -3/Armory | Destroyed 10 combat bots 51286 | -3/Armory | Unchained authorized (DW-4LL) 51400 | -3/Armory | Found Prototype Processor 51400 | -3/Armory | Identified Exp. Terrain Scan Processor 51619 | -3/Armory | System corruption reached 10% 51657 | -3/Armory | Scrapoids reinforcements arrived? 51700 | -3/Armory | DW-4LL burst out of a wall 51700 | -3/Armory | Spotted DW-4LL 51733 | -3/Armory | Lost 5 allies 51791 | -3/Armory | Build established: Hacker-Mutant 51794 | -3/Armory | System corruption reached 30% 51807 | -3/Armory | Destroyed DW-4LL 51837 | -3/Armory | Lost 6 parts (1p4u1w) 52015 | -3/Armory | P-80 Master assimilated allied Champion 8a 52096 | -3/Armory | Build established: Gunner 52224 | -3/Armory | Fabricated X-82 Rainmaker? 52260 | -3/Armory | Fabricated X-82 Rainmaker? 52359 | -3/Armory | P-80 Master assimilated allied Rainmaker 8d 52448 | -3/Armory | Lost 4 parts (1u3w) 52578 | -3/Armory | First assault squad dispatched 52705 | -3/Armory | Build established: Mutant 52738 | -3/Armory | Found Prototype Launcher 52738 | -3/Armory | Identified Tesla Bomb Launcher 52755 | -3/Armory | Found Prototype Device 52755 | -3/Armory | Identified Exp. Thermal Shield 52933 | -3/Armory | Released all parts (15) 52936 | -3/Armory | Botcube activated 52943 | -3/Armory | Core integrity fell below 50% 52948 | -3/Armory | Spotted B-86 Titan 52979 | -3/Armory | Core integrity fell below 20% 52992 | -3/Armory | Destroyed by P-80 Master with Gamma Rifle Last Messages --------------- Botcube. 52944_ System corrupted: Heat flow error (+119). 52949_ Slug penetrates Wall. 52960_ EPY A7PZU5SJ182Y 7VP&Q9HCS4NG:,7QX 52978_ System corrupted: Matter fused (-4). 52978_ Slammed into S-43 Plague. 52987_ Vortex penetrates Wall. 52989_ System corrupted: Vortex Driver failed to cycle. 52991_ Vortex penetrates S-43 Plague. 52991_ S-43 Plague suffers critical hit (Sunder). 52991_ S-43 Plague Hvy. Machine Gun ripped off. 52991_ S-43 Plague Xenon Bombardment Thruster ripped off. 52991_ S-43 Plague destroyed. 52991_ S-43 Plague suffers critical hit (Sunder). 52991_ S-43 Plague Hvy. Machine Gun ripped off. 52992_ Acquired 16 matter. Map ----- +----------------------------------------------------+ | | | ?????????????????????????? | | ?????????????????????????? | | ?????????????????????????? | | ?????????????????????????? | | ?????????????????????????? | | ?????????????????????????? | | ?????????????????????????? | | ?????????????????????????? | | ?????????????????????????? | | ???????????????????????### | | ???????????????????????# | | ???????????????????????# | | ????????#########?###### | | ??###### #?# #? | | ??# + """""????# #??? | | ??# #### """""??### #??? | | ??# #??? """""??# #??? | | ??# #???? ??# #### | | ###/####?""""" ?+ % | | # #??"""" ?# | | # """" #??""""??# !!! "" | | #["??" #??? ???#! !!! "" | | #*"??" #######??# !!! "" | | s["??" # #### | | #@"""" # | | # s + | | # p # | | # # / ############# | | # ### ###???????????? | | # #?# #?????????????? | | # #?# #?????????????? | | # #?# #?????????????? | | # #?# #?????????????? | | ########?# #?????????????? | | ?????????# #?????????????? | | ?????????# #?????????????? | | ?????????# #?????????????? | | ?????????? ??????????????? | | ?????????? ??????????????? | | ?????????? ??????????????? | | ?????????? ??????????????? | | ?????????? ??????????????? | | ?????????? ??????????????? | | ?????????? ??????????????? | | ?????????????????????????? | | ?????????????????????????? | | ?????????????????????????? | | ?????????????????????????? | | ?????????????????????????? | +----------------------------------------------------+ Best States ------------- Heat Dissipation 84 Coolant Potential 120 Energy Generation 79 Energy Capacity 1500 Matter Stores 300 Matter Capacity 300 Sight Range 24 Robot Scan Range 15 Terrain Scan Density 1010 Power Amplification 40 Base Temperature (-) 200 Armor Coverage 800 Resistance: EX 50 Resistance: EM 15 Weapon Shielding 90 Evasion (%) 80 Targeting Accuracy 12 Melee Accuracy 12 Target Analysis 14 Recoil Reduction 6 Particle Charging 30 Offensive Hacking 52 Defensive Hacking 28 Authchip Count 4 Item Schematics ----------------- Machine Rigger | -9/Scraptown | Extrapolated Mak. Leg | -9/Scraptown | Extrapolated Mak. Coolant Network | -9/Scraptown | Extrapolated Deep Structural Scanner | -9/Scraptown | Extrapolated Spk. Treads | -9/Scraptown | Extrapolated 0b10 Decoder Chip [Skirmisher] | -9/Scraptown | Extrapolated Mak. Targeting Computer | -9/Scraptown | Extrapolated Battle Rifle | -9/Scraptown | Extrapolated Barrage Gun | -9/Scraptown | Extrapolated Hvy. Battle Rifle | -9/Scraptown | Extrapolated Mak. ECM Suite | -9/Scraptown | Extrapolated 0b10 Decoder Chip [Generic] | -9/Scraptown | Extrapolated 0b10 Decoder Chip [Scout] | -9/Scraptown | Extrapolated Mak. Terrain Scan Processor | -9/Scraptown | Extrapolated Hvy. Beamcaster | -6/Factory | Extrapolated Ripper | -6/Factory | Extrapolated Mak. Propulsion Shielding | -6/Factory | Extrapolated Mak. Light Armor Plating | -6/Factory | Extrapolated Mak. Power Source | -6/Factory | Extrapolated Beamcaster | -6/Factory | Extrapolated Multitool | -6/Factory | Extrapolated CPS Tube | -6/Factory | Scanalyzed Force Field | -6/Zion | Archive Imp. Focal Shield | -6/Zion | Archive Adv. Heat Sink | -6/Zion | Archive Focal Shield | -6/Zion | Archive Imp. Remote Datajack | -6/Zion | Archive Imp. Reaction Control System | -6/Zion | Archive Hvy. Gauss Cannon | -6/Zion | Archive Imp. Antigrav System | -6/Zion | Archive Imp. Particle Charger | -6/Zion | Archive Field Propulsion Drive | -6/Zion | Archive Imp. Actuator Array | -6/Zion | Archive Mass Driver | -6/Zion | Archive Neutrino Core | -6/Zion | Archive Imp. Medium Treads | -6/Zion | Archive Exp. Weapon Shielding | -3/Research | Hacked Robot Schematics ------------------ K-01 Serf | -6/Zion | Archive A-15 Conveyor | -6/Zion | Archive G-50 Soldier | -6/Zion | Archive C-57 Dissector | -6/Zion | Archive X-82 Rainmaker | -3/Armory | Hacked Fabricated ------------ Imp. Reaction Control System | x2 | -6/Factory | Preloaded Deep Structural Scanner | x1 | -5/Factory Enh. Quantum Rifle | x2 | -4/Factory | Preloaded Enh. Quantum Rifle | x2 | -3/Research | Preloaded Exp. Weapon Shielding | x1 | -3/Research X-82 Rainmaker | x2 | -3/Armory | Authchip X-82 Rainmaker | x2 | -3/Armory | Authchip Repaired ---------- Adv. Shield Generator | 16% | -4/Factory Adv. Cooling System | 57% | -4/Factory Enh. Biometal Leg | 19% | -3/Research Studied --------- Carbon-fiber Leg | -6/Factory | Hacked Flexi-carbon Leg | -6/Factory | Hacked Lgt. Nuclear Core | -6/Factory | Hacked Arm. Leg | -5/Factory | Hacked Hyb. Fission Core | -5/Factory | Hacked Thunder Leg | -5/Factory | Hacked Alien Tech Used ----------------- None Achievements -------------- Protector Challenges ------------ None Game ------ Seed GrenadePowerWyrmscale Manual? 0 Play Time 08:00:40 Cumulative 867.2 hours Start 2026.08.08 @ 23:37:08 End 2026.08.09 @ 16:46:16 Sessions 17 Manual Loads 0 Difficulty Rogue Special Mode None Game No. 305 Rogue 301 Adventurer 4 Explorer 0 Win Type - Total 23 Types 9/3/7/0/0/0/2/2/0/0 Lore% 91 Gallery% 81 Achievement% 67 Wizard Run 0 Options --------- Layout 1 ASCII 0 Keyboard 0 Movement Numpad Keybinds 0 Fullscreen 1 Font 40/SmallcapsGlow Map View 50x40 Zoom Use 0% Tactical HUD 1 Map Filters NONE Filters NONE Steam 1 RUN: c49e0368-bafa-412d-8013-e097d02e119d